[Event "January 9 Early 2024"]
[Site "https://www.chess.com"]
[Date "2024.01.11"]
[Round "4"]
[White "Mammadov, Ziya"]
[Black "Van Kooten, Luuk"]
[Result "0-1"]
[Board "100"]
[TimeControl "180+1"]
[WhiteFideId "13418890"]
[BlackFideId "1006533"]
[WhiteElo "1960"]
[BlackElo "2275"]
[WhiteTeam "AZE"]
[BlackTeam "NED"]
[WhiteClock "0:00:01"]
[BlackClock "0:00:50"]

1. e4 {[%clk 0:02:54]}  c5 {[%clk 0:02:59]} 2. Nf3 {[%clk 0:02:53]}  d6 {[%clk 0:02:59]} 3. d4 {[%clk 0:02:53]}  cxd4 {[%clk 0:02:59]} 4. Nxd4 {[%clk 0:02:53]}  Nf6 {[%clk 0:02:59]} 5. Nc3 {[%clk 0:02:54]}  a6 {[%clk 0:03:00]} 6. f3 {[%clk 0:02:54]}  e6 {[%clk 0:02:59]} 7. Be3 {[%clk 0:02:54]}  b5 {[%clk 0:02:58]} 8. Qd2 {[%clk 0:02:54]}  Bb7 {[%clk 0:02:58]} 9. O-O-O {[%clk 0:02:53]}  Nbd7 {[%clk 0:02:58]} 10. Bg5 {[%clk 0:02:48]}  Be7 {[%clk 0:02:54]} 11. h4 {[%clk 0:02:43]}  Qc7 {[%clk 0:02:49]} 12. Be3 {[%clk 0:02:30]}  Rc8 {[%clk 0:02:46]} 13. Be2 {[%clk 0:02:28]}  b4 {[%clk 0:02:43]} 14. Na4 {[%clk 0:02:23]}  d5 {[%clk 0:02:42]} 15. exd5 {[%clk 0:02:15]}  Nxd5 {[%clk 0:02:37]} 16. Bf2 {[%clk 0:01:50]}  Nc5 {[%clk 0:01:42]} 17. Nxc5 {[%clk 0:01:47]}  Qxc5 {[%clk 0:01:41]} 18. Bg1 {[%clk 0:01:23]}  Qa5 {[%clk 0:01:38]} 19. a3 {[%clk 0:01:16]}  O-O {[%clk 0:01:35]} 20. g4 {[%clk 0:01:06]}  Nc3 {[%clk 0:01:34]} 21. Nb3 {[%clk 0:00:57]}  Qa4 {[%clk 0:01:27]} 22. h5 {[%clk 0:00:23]}  Rfd8 {[%clk 0:01:15]} 23. Bd3 {[%clk 0:00:07]}  Nxd1 {[%clk 0:01:10]} 24. Kxd1 {[%clk 0:00:07]}  bxa3 {[%clk 0:01:09]} 25. bxa3 {[%clk 0:00:06]}  Bxf3+ {[%clk 0:01:05]} 26. Ke1 {[%clk 0:00:06]}  Bxh1 {[%clk 0:01:04]} 27. h6 {[%clk 0:00:06]}  Qxg4 {[%clk 0:00:57]} 28. Qe3 {[%clk 0:00:01]}  Bh4+ {[%clk 0:00:50]} 0-1

[Event "January 9 Early 2024"]
[Site "https://www.chess.com"]
[Date "2024.01.11"]
[Round "4"]
[White "Kuhn, Clement"]
[Black "Osinovsky, Stepan"]
[Result "0-1"]
[Board "101"]
[TimeControl "180+1"]
[WhiteFideId "36099775"]
[BlackFideId "4157354"]
[WhiteElo "2563"]
[BlackElo "2409"]
[WhiteTeam "FRA"]
[BlackTeam "RUS"]
[WhiteClock "0:01:53"]
[BlackClock "0:00:24"]

1. Nf3 {[%clk 0:03:00]}  Nf6 {[%clk 0:02:59]} 2. g3 {[%clk 0:03:01]}  g6 {[%clk 0:03:00]} 3. b3 {[%clk 0:03:01]}  Bg7 {[%clk 0:03:01]} 4. Bb2 {[%clk 0:03:01]}  O-O {[%clk 0:03:02]} 5. Bg2 {[%clk 0:03:01]}  d6 {[%clk 0:03:02]} 6. d4 {[%clk 0:03:00]}  Nbd7 {[%clk 0:03:01]} 7. O-O {[%clk 0:03:00]}  e5 {[%clk 0:03:02]} 8. dxe5 {[%clk 0:03:01]}  Ng4 {[%clk 0:03:01]} 9. c4 {[%clk 0:03:02]}  Ngxe5 {[%clk 0:03:02]} 10. Nxe5 {[%clk 0:03:02]}  Nxe5 {[%clk 0:03:02]} 11. Nc3 {[%clk 0:03:03]}  Re8 {[%clk 0:02:57]} 12. Qd2 {[%clk 0:03:00]}  a5 {[%clk 0:02:44]} 13. Rad1 {[%clk 0:02:53]}  a4 {[%clk 0:02:43]} 14. Nxa4 {[%clk 0:02:52]}  Rxa4 {[%clk 0:02:41]} 15. Bxe5 {[%clk 0:02:47]}  Ra8 {[%clk 0:02:24]} 16. Bxg7 {[%clk 0:02:46]}  Kxg7 {[%clk 0:02:25]} 17. c5 {[%clk 0:02:32]}  Qe7 {[%clk 0:01:57]} 18. cxd6 {[%clk 0:02:32]}  cxd6 {[%clk 0:01:58]} 19. Qb2+ {[%clk 0:02:27]}  Qe5 {[%clk 0:01:57]} 20. Qxe5+ {[%clk 0:02:24]}  Rxe5 {[%clk 0:01:53]} 21. Rd2 {[%clk 0:02:22]}  Ra3 {[%clk 0:01:46]} 22. Bd5 {[%clk 0:02:19]}  b6 {[%clk 0:01:31]} 23. Rc1 {[%clk 0:02:17]}  Ba6 {[%clk 0:01:29]} 24. e4 {[%clk 0:02:17]}  f5 {[%clk 0:00:59]} 25. Rc7+ {[%clk 0:02:07]}  Kf8 {[%clk 0:00:45]} 26. f4 {[%clk 0:02:07]}  Re7 {[%clk 0:00:45]} 27. Rxe7 {[%clk 0:02:03]}  Kxe7 {[%clk 0:00:46]} 28. exf5 {[%clk 0:02:04]}  gxf5 {[%clk 0:00:46]} 29. Kf2 {[%clk 0:02:00]}  Bc8 {[%clk 0:00:25]} 30. Rc2 {[%clk 0:01:55]}  Bd7 {[%clk 0:00:23]} 31. b4 {[%clk 0:01:54]}  Rd3 {[%clk 0:00:20]} 32. Bb3 {[%clk 0:01:53]}  Rd4 {[%clk 0:00:19]} 33. Re2+ {[%clk 0:01:42]}  Kf6 {[%clk 0:00:19]} 34. b5 {[%clk 0:01:42]}  d5 {[%clk 0:00:17]} 35. Re5 {[%clk 0:01:41]}  Rd2+ {[%clk 0:00:16]} 36. Kf3 {[%clk 0:01:42]}  Bxb5 {[%clk 0:00:15]} 37. Rxd5 {[%clk 0:01:40]}  Bc6 {[%clk 0:00:13]} 38. Ke3 {[%clk 0:01:40]}  Rxd5 {[%clk 0:00:13]} 39. Bxd5 {[%clk 0:01:40]}  Bxd5 {[%clk 0:00:14]} 40. Kd4 {[%clk 0:01:41]}  Bxa2 {[%clk 0:00:14]} 41. Kc3 {[%clk 0:01:41]}  b5 {[%clk 0:00:14]} 42. Kb4 {[%clk 0:01:42]}  Bc4 {[%clk 0:00:14]} 43. h3 {[%clk 0:01:43]}  Be2 {[%clk 0:00:14]} 44. Kc5 {[%clk 0:01:42]}  Ke6 {[%clk 0:00:14]} 45. Kd4 {[%clk 0:01:40]}  h5 {[%clk 0:00:14]} 46. Ke3 {[%clk 0:01:40]}  Bf1 {[%clk 0:00:14]} 47. Kd4 {[%clk 0:01:41]}  Bxh3 {[%clk 0:00:14]} 48. Kc5 {[%clk 0:01:42]}  Bf1 {[%clk 0:00:14]} 49. Kd4 {[%clk 0:01:40]}  Kd6 {[%clk 0:00:15]} 50. Kc3 {[%clk 0:01:40]}  Kd5 {[%clk 0:00:15]} 51. Kb3 {[%clk 0:01:41]}  Ke4 {[%clk 0:00:16]} 52. Kc3 {[%clk 0:01:42]}  Kf3 {[%clk 0:00:16]} 53. Kd4 {[%clk 0:01:43]}  Kxg3 {[%clk 0:00:17]} 54. Ke5 {[%clk 0:01:44]}  Kg4 {[%clk 0:00:17]} 55. Kf6 {[%clk 0:01:44]}  b4 {[%clk 0:00:17]} 56. Ke5 {[%clk 0:01:45]}  h4 {[%clk 0:00:17]} 57. Kf6 {[%clk 0:01:46]}  h3 {[%clk 0:00:18]} 58. Kg6 {[%clk 0:01:47]}  h2 {[%clk 0:00:19]} 59. Kh6 {[%clk 0:01:48]}  h1=Q+ {[%clk 0:00:20]} 60. Kg6 {[%clk 0:01:49]}  Qe4 {[%clk 0:00:20]} 61. Kf6 {[%clk 0:01:49]}  Qc6+ {[%clk 0:00:20]} 62. Kg7 {[%clk 0:01:49]}  Kxf4 {[%clk 0:00:21]} 63. Kf7 {[%clk 0:01:50]}  b3 {[%clk 0:00:21]} 64. Ke7 {[%clk 0:01:51]}  b2 {[%clk 0:00:22]} 65. Kf7 {[%clk 0:01:52]}  b1=Q {[%clk 0:00:23]} 66. Ke7 {[%clk 0:01:53]}  Qbb7+ {[%clk 0:00:23]} 67. Kf8 {[%clk 0:01:53]}  Qcc8# {[%clk 0:00:24]} 0-1

[Event "January 9 Early 2024"]
[Site "https://www.chess.com"]
[Date "2024.01.11"]
[Round "4"]
[White "Caspi, Israel"]
[Black "Kozak, Adam"]
[Result "1-0"]
[Board "106"]
[TimeControl "180+1"]
[WhiteFideId "2807394"]
[BlackFideId "753246"]
[WhiteElo "2633"]
[BlackElo "2877"]
[WhiteTeam "ISR"]
[BlackTeam "HUN"]
[WhiteClock "0:00:53"]
[BlackClock "0:00:01"]

1. d4 {[%clk 0:02:57]}  Nf6 {[%clk 0:01:33]} 2. c4 {[%clk 0:02:53]}  e6 {[%clk 0:01:33]} 3. Nf3 {[%clk 0:02:53]}  c5 {[%clk 0:01:32]} 4. d5 {[%clk 0:02:52]}  b5 {[%clk 0:01:32]} 5. dxe6 {[%clk 0:02:49]}  fxe6 {[%clk 0:01:31]} 6. cxb5 {[%clk 0:02:50]}  d5 {[%clk 0:01:32]} 7. g3 {[%clk 0:02:48]}  Bd6 {[%clk 0:01:32]} 8. Bg2 {[%clk 0:02:48]}  O-O {[%clk 0:01:33]} 9. O-O {[%clk 0:02:48]}  Nbd7 {[%clk 0:01:33]} 10. a4 {[%clk 0:02:47]}  Qe7 {[%clk 0:01:30]} 11. b3 {[%clk 0:02:44]}  a6 {[%clk 0:01:31]} 12. Na3 {[%clk 0:02:30]}  Ne4 {[%clk 0:01:28]} 13. Bb2 {[%clk 0:02:26]}  Ndf6 {[%clk 0:01:18]} 14. Nd2 {[%clk 0:02:23]}  Bb7 {[%clk 0:01:10]} 15. Nxe4 {[%clk 0:02:15]}  Nxe4 {[%clk 0:01:10]} 16. Bxe4 {[%clk 0:02:15]}  dxe4 {[%clk 0:01:10]} 17. Nc4 {[%clk 0:02:12]}  Rad8 {[%clk 0:01:09]} 18. Qc1 {[%clk 0:02:06]}  axb5 {[%clk 0:00:50]} 19. axb5 {[%clk 0:02:04]}  Bb8 {[%clk 0:00:51]} 20. Qe3 {[%clk 0:01:51]}  Bd5 {[%clk 0:00:49]} 21. Ba3 {[%clk 0:01:47]}  Rc8 {[%clk 0:00:23]} 22. Rfc1 {[%clk 0:01:46]}  g5 {[%clk 0:00:20]} 23. Bb2 {[%clk 0:01:44]}  h6 {[%clk 0:00:03]} 24. Ra6 {[%clk 0:01:39]}  Kh7 {[%clk 0:00:03]} 25. Rca1 {[%clk 0:01:26]}  Rf7 {[%clk 0:00:03]} 26. Ne5 {[%clk 0:01:23]}  Rg8 {[%clk 0:00:02]} 27. Nxf7 {[%clk 0:01:22]}  Qxf7 {[%clk 0:00:03]} 28. Qxc5 {[%clk 0:01:15]}  Rf8 {[%clk 0:00:02]} 29. Bd4 {[%clk 0:01:14]}  Bb7 {[%clk 0:00:01]} 30. R6a2 {[%clk 0:01:00]}  Rc8 {[%clk 0:00:02]} 31. Qb4 {[%clk 0:00:57]}  e3 {[%clk 0:00:02]} 32. Bxe3 {[%clk 0:00:56]}  Qf5 {[%clk 0:00:02]} 33. Qe7+ {[%clk 0:00:53]}  Kg6 {[%clk 0:00:01]} 34. Qxb7 {[%clk 0:00:53]} 1-0

[Event "January 9 Early 2024"]
[Site "https://www.chess.com"]
[Date "2024.01.11"]
[Round "4"]
[White "Szpar, Milosz"]
[Black "Onufrienko, Vladislav"]
[Result "1-0"]
[Board "107"]
[TimeControl "180+1"]
[WhiteFideId "1184989"]
[BlackFideId "13804332"]
[WhiteElo "2849"]
[BlackElo "2607"]
[WhiteTeam "POL"]
[BlackTeam "KGZ"]
[WhiteClock "0:00:31"]
[BlackClock "0:00:04"]

1. e4 {[%clk 0:02:46]}  Nf6 {[%clk 0:03:00]} 2. e5 {[%clk 0:02:43]}  Nd5 {[%clk 0:03:00]} 3. d4 {[%clk 0:02:43]}  d6 {[%clk 0:03:00]} 4. c4 {[%clk 0:02:44]}  Nb6 {[%clk 0:03:00]} 5. f4 {[%clk 0:02:44]}  dxe5 {[%clk 0:03:01]} 6. fxe5 {[%clk 0:02:44]}  Nc6 {[%clk 0:03:01]} 7. Be3 {[%clk 0:02:44]}  Bf5 {[%clk 0:03:02]} 8. Nc3 {[%clk 0:02:44]}  e6 {[%clk 0:03:03]} 9. Be2 {[%clk 0:02:44]}  f6 {[%clk 0:03:03]} 10. exf6 {[%clk 0:02:36]}  Qxf6 {[%clk 0:03:04]} 11. Nf3 {[%clk 0:02:33]}  O-O-O {[%clk 0:03:05]} 12. O-O {[%clk 0:02:30]}  h6 {[%clk 0:03:04]} 13. d5 {[%clk 0:02:05]}  Ne5 {[%clk 0:03:03]} 14. Nxe5 {[%clk 0:01:48]}  Qxe5 {[%clk 0:03:04]} 15. Bd4 {[%clk 0:01:44]}  Qd6 {[%clk 0:02:33]} 16. c5 {[%clk 0:01:45]}  Qd7 {[%clk 0:02:33]} 17. cxb6 {[%clk 0:01:43]}  axb6 {[%clk 0:02:34]} 18. Bb5 {[%clk 0:01:35]}  c6 {[%clk 0:02:27]} 19. Qa4 {[%clk 0:01:32]}  cxb5 {[%clk 0:01:32]} 20. Nxb5 {[%clk 0:01:29]}  Qxd5 {[%clk 0:01:33]} 21. Rac1+ {[%clk 0:01:16]}  Bc5 {[%clk 0:01:32]} 22. b4 {[%clk 0:01:15]}  Bd3 {[%clk 0:01:22]} 23. Bxc5 {[%clk 0:01:08]}  Bxf1 {[%clk 0:01:06]} 24. Bxb6+ {[%clk 0:00:33]}  Bc4 {[%clk 0:00:28]} 25. Na3 {[%clk 0:00:33]}  Qc6 {[%clk 0:00:04]} 26. Rxc4 {[%clk 0:00:31]} 1-0

[Event "January 9 Early 2024"]
[Site "https://www.chess.com"]
[Date "2024.01.11"]
[Round "4"]
[White "Reprintsev, Alexander"]
[Black "Zavgorodniy, Sergiy"]
[Result "0-1"]
[Board "108"]
[TimeControl "180+1"]
[WhiteFideId "14100541"]
[BlackFideId "14110148"]
[WhiteElo "2458"]
[BlackElo "2623"]
[WhiteTeam "UKR"]
[BlackTeam "UKR"]
[WhiteClock "0:00:06"]
[BlackClock "0:00:56"]

1. e4 {[%clk 0:03:00]}  e5 {[%clk 0:02:55]} 2. Nf3 {[%clk 0:02:02]}  d6 {[%clk 0:02:53]} 3. d4 {[%clk 0:02:00]}  exd4 {[%clk 0:02:54]} 4. Nxd4 {[%clk 0:01:59]}  Nf6 {[%clk 0:02:54]} 5. Nc3 {[%clk 0:01:59]}  Be7 {[%clk 0:02:54]} 6. Bf4 {[%clk 0:01:50]}  O-O {[%clk 0:02:54]} 7. Qd2 {[%clk 0:01:50]}  Nc6 {[%clk 0:02:55]} 8. O-O-O {[%clk 0:01:50]}  Nxd4 {[%clk 0:02:55]} 9. Qxd4 {[%clk 0:01:33]}  Be6 {[%clk 0:02:55]} 10. h3 {[%clk 0:01:29]}  Nd7 {[%clk 0:02:55]} 11. g4 {[%clk 0:01:27]}  Nb6 {[%clk 0:02:53]} 12. Bg2 {[%clk 0:01:14]}  a5 {[%clk 0:02:46]} 13. a3 {[%clk 0:00:53]}  c5 {[%clk 0:02:38]} 14. Qd2 {[%clk 0:00:49]}  Nc4 {[%clk 0:02:38]} 15. Qe2 {[%clk 0:00:48]}  Bf6 {[%clk 0:02:18]} 16. Rd3 {[%clk 0:00:30]}  b5 {[%clk 0:01:49]} 17. Rhd1 {[%clk 0:00:23]}  b4 {[%clk 0:01:46]} 18. Rxd6 {[%clk 0:00:17]}  Nxd6 {[%clk 0:01:42]} 19. Rxd6 {[%clk 0:00:17]}  Bg5 {[%clk 0:01:19]} 20. Rxd8 {[%clk 0:00:15]}  Bxf4+ {[%clk 0:01:19]} 21. Kb1 {[%clk 0:00:12]}  Raxd8 {[%clk 0:01:17]} 22. Nd5 {[%clk 0:00:12]}  Bxd5 {[%clk 0:01:17]} 23. exd5 {[%clk 0:00:12]}  bxa3 {[%clk 0:01:18]} 24. bxa3 {[%clk 0:00:12]}  Rfe8 {[%clk 0:01:18]} 25. Qc4 {[%clk 0:00:09]}  Re1+ {[%clk 0:01:13]} 26. Ka2 {[%clk 0:00:09]}  Be5 {[%clk 0:01:13]} 27. c3 {[%clk 0:00:08]}  Rb8 {[%clk 0:01:11]} 28. f4 {[%clk 0:00:07]}  Bd6 {[%clk 0:01:10]} 29. a4 {[%clk 0:00:06]}  g6 {[%clk 0:01:09]} 30. f5 {[%clk 0:00:05]}  Be5 {[%clk 0:01:05]} 31. fxg6 {[%clk 0:00:04]}  hxg6 {[%clk 0:01:05]} 32. d6 {[%clk 0:00:05]}  Rc1 {[%clk 0:00:57]} 33. Bd5 {[%clk 0:00:05]}  Bxc3 {[%clk 0:00:57]} 34. Bxf7+ {[%clk 0:00:06]}  Kh8 {[%clk 0:00:57]} 35. Qe2 {[%clk 0:00:06]}  Ra1# {[%clk 0:00:56]} 0-1

[Event "January 9 Early 2024"]
[Site "https://www.chess.com"]
[Date "2024.01.11"]
[Round "4"]
[White "Yuan, Qingyu"]
[Black "Makaraci, Tunahan"]
[Result "1-0"]
[Board "111"]
[TimeControl "180+1"]
[WhiteFideId "8609772"]
[BlackFideId "6356559"]
[WhiteElo "2760"]
[BlackElo "2550"]
[WhiteTeam "CHN"]
[BlackTeam "TUR"]
[WhiteClock "0:00:49"]
[BlackClock "0:00:07"]

1. e4 {[%clk 0:03:00]}  c5 {[%clk 0:02:59]} 2. Nf3 {[%clk 0:02:58]}  Nc6 {[%clk 0:02:59]} 3. Bb5 {[%clk 0:02:58]}  d6 {[%clk 0:02:59]} 4. O-O {[%clk 0:02:59]}  Bd7 {[%clk 0:02:59]} 5. Re1 {[%clk 0:02:59]}  Nf6 {[%clk 0:02:59]} 6. c3 {[%clk 0:02:59]}  a6 {[%clk 0:03:00]} 7. Bf1 {[%clk 0:03:00]}  Bg4 {[%clk 0:03:00]} 8. h3 {[%clk 0:03:00]}  Bxf3 {[%clk 0:03:00]} 9. Qxf3 {[%clk 0:03:01]}  e6 {[%clk 0:03:01]} 10. d3 {[%clk 0:02:59]}  Rg8 {[%clk 0:02:56]} 11. Qd1 {[%clk 0:02:40]}  g5 {[%clk 0:02:54]} 12. g3 {[%clk 0:02:39]}  g4 {[%clk 0:02:52]} 13. h4 {[%clk 0:02:37]}  Be7 {[%clk 0:02:52]} 14. d4 {[%clk 0:02:33]}  cxd4 {[%clk 0:02:48]} 15. cxd4 {[%clk 0:02:34]}  Nh5 {[%clk 0:02:47]} 16. Bg2 {[%clk 0:02:29]}  Bxh4 {[%clk 0:02:35]} 17. gxh4 {[%clk 0:02:14]}  Qxh4 {[%clk 0:02:35]} 18. Nc3 {[%clk 0:02:05]}  e5 {[%clk 0:02:16]} 19. Ne2 {[%clk 0:01:44]}  g3 {[%clk 0:02:02]} 20. f3 {[%clk 0:01:36]}  O-O-O {[%clk 0:01:25]} 21. d5 {[%clk 0:01:32]}  Ne7 {[%clk 0:01:06]} 22. Be3 {[%clk 0:01:31]}  Kb8 {[%clk 0:00:45]} 23. Qb3 {[%clk 0:01:27]}  Nf4 {[%clk 0:00:41]} 24. Nxf4 {[%clk 0:01:19]}  exf4 {[%clk 0:00:41]} 25. Bd4 {[%clk 0:01:19]}  Rg6 {[%clk 0:00:19]} 26. Qb6 {[%clk 0:01:14]}  Nc8 {[%clk 0:00:19]} 27. Qb4 {[%clk 0:01:09]}  Qg5 {[%clk 0:00:17]} 28. Rac1 {[%clk 0:01:05]}  Rh6 {[%clk 0:00:15]} 29. Rc2 {[%clk 0:00:57]}  Rh2 {[%clk 0:00:12]} 30. Rec1 {[%clk 0:00:57]}  h5 {[%clk 0:00:07]} 31. Rxc8+ {[%clk 0:00:49]}  Rxc8 {[%clk 0:00:07]} 32. Qxd6+ {[%clk 0:00:49]} 1-0

[Event "January 9 Early 2024"]
[Site "https://www.chess.com"]
[Date "2024.01.11"]
[Round "4"]
[White "Ranaldi, Lucas"]
[Black "Hejazipour, Mitra"]
[Result "1/2-1/2"]
[Board "113"]
[TimeControl "180+1"]
[WhiteFideId "1519484"]
[BlackFideId "12505951"]
[WhiteElo "2684"]
[BlackElo "2473"]
[WhiteTeam "NOR"]
[BlackTeam "FRA"]
[WhiteClock "0:00:04"]
[BlackClock "0:00:59"]

1. Nf3 {[%clk 0:03:00]}  Nf6 {[%clk 0:02:57]} 2. c4 {[%clk 0:03:00]}  e6 {[%clk 0:02:56]} 3. g3 {[%clk 0:02:58]}  d5 {[%clk 0:02:56]} 4. Bg2 {[%clk 0:02:59]}  Be7 {[%clk 0:02:54]} 5. O-O {[%clk 0:02:59]}  d4 {[%clk 0:02:52]} 6. e3 {[%clk 0:02:57]}  c5 {[%clk 0:02:51]} 7. exd4 {[%clk 0:02:57]}  cxd4 {[%clk 0:02:51]} 8. d3 {[%clk 0:02:57]}  O-O {[%clk 0:02:51]} 9. Bg5 {[%clk 0:02:50]}  Nc6 {[%clk 0:02:50]} 10. Nbd2 {[%clk 0:02:47]}  Nd7 {[%clk 0:02:46]} 11. Bxe7 {[%clk 0:02:45]}  Qxe7 {[%clk 0:02:45]} 12. a3 {[%clk 0:02:45]}  a5 {[%clk 0:02:45]} 13. Re1 {[%clk 0:02:45]}  a4 {[%clk 0:02:42]} 14. Qc2 {[%clk 0:02:38]}  Nc5 {[%clk 0:02:37]} 15. Ne4 {[%clk 0:02:34]}  Nxe4 {[%clk 0:02:31]} 16. Rxe4 {[%clk 0:02:35]}  Qc5 {[%clk 0:02:26]} 17. Rae1 {[%clk 0:02:27]}  f6 {[%clk 0:02:19]} 18. Nd2 {[%clk 0:01:58]}  e5 {[%clk 0:02:16]} 19. R4e2 {[%clk 0:01:55]}  Bg4 {[%clk 0:02:11]} 20. Bd5+ {[%clk 0:01:46]}  Kh8 {[%clk 0:02:10]} 21. f3 {[%clk 0:01:40]}  Bh5 {[%clk 0:02:08]} 22. Ne4 {[%clk 0:01:35]}  Qe7 {[%clk 0:01:57]} 23. Rf2 {[%clk 0:01:32]}  f5 {[%clk 0:01:43]} 24. Nd2 {[%clk 0:01:27]}  Qd6 {[%clk 0:01:39]} 25. f4 {[%clk 0:01:06]}  exf4 {[%clk 0:01:28]} 26. Rxf4 {[%clk 0:01:07]}  Rae8 {[%clk 0:01:23]} 27. Ref1 {[%clk 0:00:40]}  Re2 {[%clk 0:01:20]} 28. Rxf5 {[%clk 0:00:19]}  Rxf5 {[%clk 0:01:19]} 29. Rxf5 {[%clk 0:00:20]}  Bg6 {[%clk 0:01:18]} 30. Rf1 {[%clk 0:00:10]}  Ne5 {[%clk 0:01:16]} 31. Ne4 {[%clk 0:00:10]}  Rxc2 {[%clk 0:01:06]} 32. Nxd6 {[%clk 0:00:09]}  h6 {[%clk 0:01:05]} 33. Rf8+ {[%clk 0:00:09]}  Kh7 {[%clk 0:01:05]} 34. Bg8+ {[%clk 0:00:09]}  Kh8 {[%clk 0:01:05]} 35. c5 {[%clk 0:00:04]}  Rxb2 {[%clk 0:01:01]} 36. Nc4 {[%clk 0:00:02]}  Nxc4 {[%clk 0:00:58]} 37. Bxc4+ {[%clk 0:00:01]}  Kh7 {[%clk 0:00:58]} 38. Bg8+ {[%clk 0:00:01]}  Kh8 {[%clk 0:00:58]} 39. Bf7+ {[%clk 0:00:02]}  Kh7 {[%clk 0:00:58]} 40. Bg8+ {[%clk 0:00:02]}  Kh8 {[%clk 0:00:59]} 41. Bf7+ {[%clk 0:00:03]}  Kh7 {[%clk 0:00:59]} 42. Bg8+ {[%clk 0:00:04]} 1/2-1/2

[Event "January 9 Early 2024"]
[Site "https://www.chess.com"]
[Date "2024.01.11"]
[Round "4"]
[White "Matko, Ognjen"]
[Black "Delgado Kuffo, Andres"]
[Result "1-0"]
[Board "114"]
[TimeControl "180+1"]
[WhiteFideId "14509717"]
[BlackFideId "3600475"]
[WhiteElo "2512"]
[BlackElo "2316"]
[WhiteTeam "CRO"]
[BlackTeam "ECU"]
[WhiteClock "0:00:44"]
[BlackClock "0:00:01"]

1. g3 {[%clk 0:03:00]}  d5 {[%clk 0:01:52]} 2. Bg2 {[%clk 0:03:01]}  c6 {[%clk 0:01:50]} 3. d3 {[%clk 0:03:00]}  Nf6 {[%clk 0:01:18]} 4. Nd2 {[%clk 0:03:00]}  Bf5 {[%clk 0:01:14]} 5. e4 {[%clk 0:03:00]}  dxe4 {[%clk 0:01:14]} 6. dxe4 {[%clk 0:03:01]}  Bg6 {[%clk 0:01:13]} 7. e5 {[%clk 0:02:56]}  Nd5 {[%clk 0:01:11]} 8. e6 {[%clk 0:02:37]}  Nb4 {[%clk 0:01:01]} 9. exf7+ {[%clk 0:02:37]}  Kxf7 {[%clk 0:00:47]} 10. Be4 {[%clk 0:02:32]}  Bxe4 {[%clk 0:00:29]} 11. Nxe4 {[%clk 0:02:33]}  Qd5 {[%clk 0:00:21]} 12. Ng5+ {[%clk 0:02:00]}  Kg8 {[%clk 0:00:20]} 13. Qxd5+ {[%clk 0:01:58]}  cxd5 {[%clk 0:00:19]} 14. Kd1 {[%clk 0:01:54]}  e5 {[%clk 0:00:19]} 15. a3 {[%clk 0:01:51]}  N4c6 {[%clk 0:00:19]} 16. b4 {[%clk 0:01:49]}  a6 {[%clk 0:00:18]} 17. Bb2 {[%clk 0:01:46]}  Nd7 {[%clk 0:00:18]} 18. N1f3 {[%clk 0:01:42]}  Re8 {[%clk 0:00:17]} 19. Re1 {[%clk 0:01:36]}  h6 {[%clk 0:00:17]} 20. Nh3 {[%clk 0:01:33]}  g5 {[%clk 0:00:14]} 21. Nhg1 {[%clk 0:01:26]}  Bg7 {[%clk 0:00:11]} 22. Rb1 {[%clk 0:01:26]}  Kh7 {[%clk 0:00:09]} 23. Ke2 {[%clk 0:01:26]}  Rhf8 {[%clk 0:00:06]} 24. Red1 {[%clk 0:01:23]}  e4 {[%clk 0:00:05]} 25. Ne1 {[%clk 0:01:18]}  Nde5 {[%clk 0:00:04]} 26. Bxe5 {[%clk 0:01:11]}  Rxe5 {[%clk 0:00:03]} 27. b5 {[%clk 0:01:09]}  axb5 {[%clk 0:00:02]} 28. Rxb5 {[%clk 0:01:09]}  d4 {[%clk 0:00:02]} 29. Rxb7 {[%clk 0:01:04]}  Ref5 {[%clk 0:00:01]} 30. f3 {[%clk 0:00:44]} 1-0

[Event "January 9 Early 2024"]
[Site "https://www.chess.com"]
[Date "2024.01.11"]
[Round "4"]
[White "Jeet, Jain"]
[Black "Kozak, Antoni"]
[Result "0-1"]
[Board "117"]
[TimeControl "180+1"]
[WhiteFideId "5073022"]
[BlackFideId "21832030"]
[WhiteElo "2544"]
[BlackElo "2759"]
[WhiteTeam "IND"]
[BlackTeam "POL"]
[WhiteClock "0:00:13"]
[BlackClock "0:01:08"]

1. Nf3 {[%clk 0:02:18]}  e6 {[%clk 0:02:55]} 2. d4 {[%clk 0:02:18]}  d5 {[%clk 0:02:56]} 3. Bf4 {[%clk 0:02:17]}  Bd6 {[%clk 0:02:45]} 4. Bxd6 {[%clk 0:02:15]}  cxd6 {[%clk 0:02:45]} 5. Nbd2 {[%clk 0:02:15]}  f5 {[%clk 0:02:43]} 6. c4 {[%clk 0:02:13]}  dxc4 {[%clk 0:02:43]} 7. Nxc4 {[%clk 0:02:13]}  Nf6 {[%clk 0:02:42]} 8. e3 {[%clk 0:02:13]}  O-O {[%clk 0:02:42]} 9. Be2 {[%clk 0:02:10]}  Ne4 {[%clk 0:02:38]} 10. O-O {[%clk 0:02:10]}  b6 {[%clk 0:02:38]} 11. Nfd2 {[%clk 0:02:09]}  Bb7 {[%clk 0:02:37]} 12. Nxe4 {[%clk 0:02:10]}  fxe4 {[%clk 0:02:34]} 13. f4 {[%clk 0:02:07]}  Nc6 {[%clk 0:02:28]} 14. d5 {[%clk 0:02:00]}  Na5 {[%clk 0:02:13]} 15. dxe6 {[%clk 0:01:51]}  d5 {[%clk 0:02:08]} 16. Ne5 {[%clk 0:01:51]}  Qd6 {[%clk 0:01:59]} 17. Bg4 {[%clk 0:01:46]}  Nc6 {[%clk 0:01:48]} 18. Nxc6 {[%clk 0:01:38]}  Bxc6 {[%clk 0:01:48]} 19. f5 {[%clk 0:01:31]}  Bb5 {[%clk 0:01:46]} 20. Rf2 {[%clk 0:01:29]}  Bd3 {[%clk 0:01:46]} 21. Bh3 {[%clk 0:01:20]}  Qe5 {[%clk 0:01:41]} 22. Rc1 {[%clk 0:01:13]}  d4 {[%clk 0:01:39]} 23. Qd2 {[%clk 0:01:00]}  Rac8 {[%clk 0:01:35]} 24. Rxc8 {[%clk 0:00:49]}  Rxc8 {[%clk 0:01:34]} 25. e7 {[%clk 0:00:43]}  Rc2 {[%clk 0:01:22]} 26. Qxc2 {[%clk 0:00:19]}  Bxc2 {[%clk 0:01:21]} 27. Rxc2 {[%clk 0:00:20]}  Qxe7 {[%clk 0:01:19]} 28. exd4 {[%clk 0:00:20]}  Qb4 {[%clk 0:01:19]} 29. Kf2 {[%clk 0:00:19]}  Qxd4+ {[%clk 0:01:18]} 30. Ke1 {[%clk 0:00:17]}  Qe3+ {[%clk 0:01:14]} 31. Re2 {[%clk 0:00:17]}  Qg1+ {[%clk 0:01:12]} 32. Kd2 {[%clk 0:00:17]}  Qd4+ {[%clk 0:01:13]} 33. Ke1 {[%clk 0:00:17]}  e3 {[%clk 0:01:13]} 34. a3 {[%clk 0:00:15]}  Qc5 {[%clk 0:01:12]} 35. Kd1 {[%clk 0:00:15]}  Kf7 {[%clk 0:01:10]} 36. g3 {[%clk 0:00:15]}  Qd5+ {[%clk 0:01:07]} 37. Kc2 {[%clk 0:00:13]}  Qc4+ {[%clk 0:01:07]} 38. Kd1 {[%clk 0:00:13]}  Qd3+ {[%clk 0:01:08]} 0-1